Cogmind - Beta 16 @@@ ROGUE MODE // 2025.12.07 @ 16:11:45 Player: Sherlockkat Result: Destroyed by 5X-BWK(R) with Subdweller Shrapnel Launcher Performance ------------- Evolutions (0) 0 Regions Visited (3) 600 Robots Destroyed (15) 75 Value Destroyed (136) 136 Prototype IDs (0) 0 Alien Tech Used (0) 0 Bonus (74) 74 TOTAL SCORE: 885 Bonus ------- Follower Combat Kills 74 Cogmind --------- Core Integrity 0/250 Matter 300/300 Energy 250/250 System Corruption 0% Temperature Cool (0) Movement Core (500) Ox9 Location -10/Subcaves Parts ------- > --- POWER (1) -------- Ion Engine > --- PROPULSION (2) --- (None) > --- UTILITY (2) ------ Large Storage Unit Seismic Detector > --- WEAPON (2) ------- Light Assault Rifle Light Assault Rifle > --- INVENTORY (15) --- Light Ion Engine Light Treads Aluminum Leg Aluminum Leg Wheel Wheel Improved Heat Sink Medium Storage Unit Structural Scanner Small Laser Small Laser Subdweller Laser Assault Rifle Grenade Launcher Peak State ------------ > --- POWER ------------ Ion Engine > --- PROPULSION ------- Light Treads Light Treads > --- UTILITY ---------- Large Storage Unit Seismic Detector > --- WEAPON ----------- Light Assault Rifle Light Assault Rifle > --- INVENTORY -------- Light Ion Engine Light Treads Aluminum Leg Aluminum Leg Wheel Wheel Medium Storage Unit Small Laser Small Laser Assault Rifle [Rating: 8] Favorites ----------- Power Ion Engine Engine Ion Engine Propulsion Light Treads Treads Light Treads Utility Seismic Detector Device Seismic Detector Storage Large Storage Unit Weapon Light Assault Rifle Ballistic Gun Light Assault Rifle Build | -11 -10 -10 -10 ------- Run | Yrd Mat Min Sub Slots Evolved . | . . . . Power . | . . . . Propulsion . | . . . . Utility . | . . . . Weapon . | . . . . Parts Attached 9 | 6 3 . . Power 1 | . 1 . . Engine 1 | . 1 . . Core . | . . . . Reactor . | . . . . Propulsion 3 | 2 1 . . Treads 3 | 2 1 . . Leg . | . . . . Wheel . | . . . . Hover . | . . . . Flight . | . . . . Utility 3 | 2 1 . . Device 1 | 1 . . . Storage 2 | 1 1 . . Processor . | . . . . Hackware . | . . . . Protection . | . . . . Artifact . | . . . . Weapon 2 | 2 . . . Energy Gun . | . . . . Energy Cannon . | . . . . Ballistic Gun 2 | 2 . . . Ballistic Cannon . | . . . . Launcher . | . . . . Special Weapon . | . . . . Impact Weapon . | . . . . Slashing Weapon . | . . . . Piercing Weapon . | . . . . Special Melee Weapon . | . . . . Unidentified Prototypes . | . . . . Parts Lost 2 | . . . 2 Power . | . . . . Propulsion 2 | . . . 2 Utility . | . . . . Weapon . | . . . . Highest Loss Streak 2 | . . . 2 To Critical Strikes . | . . . . Average Backups 10 | 4 9 12 13 Power 1 | 1 1 1 1 Propulsion 4 | 2 4 5 5 Utility 1 | . . 2 2 Weapon 3 | . 2 4 4 Tool/Special . | . . . . Unused Backups 13 | . . . 13 Power 1 | . . . 1 Propulsion 4 | . . . 4 Utility 3 | . . . 3 Weapon 5 | . . . 5 Tool/Special . | . . . . Average Slot Usage (%) 98 | . 96 100 100 Engine 12 | . 10 14 14 Treads 28 | . 28 28 28 Device 14 | . 14 14 14 Storage 14 | . 14 14 14 Ballistic Gun 28 | . 28 28 28 Peak Build Rating 8 | 6 8 8 8 Average Rating 7 | 4 7 8 7 On Entrance 5 | . 6 8 8 Avg Prop Armor Cover (%) . | . . . . Naked Turns . | . . . . Heaviest Build 28 | 8 28 28 28 Greatest Support 40 | 40 40 40 40 Greatest Overweight (x) . | . . . . Average Overweight (x) . | . . . . Largest Inventory Capacity 15 | 8 15 15 15 Average Capacity 13 | 7 13 15 15 Most Carried 14 | 7 12 12 14 Average Carried 10 | 5 9 12 13 Final Capacity 15 | 8 15 15 15 Final Carried 14 | 7 12 12 14 Class Distribution -------------------- 100% | Mutant Dominant Class ---------------- Mutant | -10/Materials Mutant | -10/Mines Mutant | -10/Subcaves Resources | -11 -10 -10 -10 ----------- Run | Yrd Mat Min Sub Matter Collected 406 | 268 96 34 8 Remotely . | . . . . Salvage Created 396 | 100 239 57 . Parts 36 | 8 23 5 . Haulers Intercepted 1 | . 1 . . Recyclers Shooed 2 | . 2 . . Parts Field Recycled . | . . . . Retrieved Matter . | . . . . Parts Self-Destructed . | . . . . Prevented . | . . . . Parts Restored . | . . . . Kills | -11 -10 -10 -10 ------- Run | Yrd Mat Min Sub Combat Hostiles Destroyed 10 | . 6 4 . Guns 10 | . 6 4 . Classes Destroyed 5 | 2 3 . . Builder 1 | . 1 . . Tunneler 1 | 1 . . . Hauler 1 | . 1 . . Recycler 2 | 1 1 . . Swarmer 10 | . 6 4 . Best Kill Streak 3 | 2 3 3 . Combat Bots Only 3 | . 3 3 . Max Kills in Single Turn 1 | 1 1 1 . Gunslinging . | . . . . Exploded . | . . . . Melee . | . . . . Uniques/NPCs Destroyed . | . . . . Combat | -11 -10 -10 -10 -------- Run | Yrd Mat Min Sub Hostile Shots Fired 90 | . 31 49 10 Missed 20 | . 8 9 3 Hits 70 | . 23 40 7 Projectile 70 | . 23 40 7 AOE 3 | . . . 3 Damage Taken 751 | . 182 309 260 Core 256 | . 46 61 149 Absorbed by Shields . | . . . . Core Remaining (%) 100 | 100 . . . Volleys Fired 56 | 4 28 19 5 Largest 2 | 2 2 2 2 Hottest 40 | 40 40 40 40 Shots Fired 112 | 8 56 38 10 Gun 112 | 8 56 38 10 Cannon . | . . . . Launcher . | . . . . Special . | . . . . Kinetic 112 | 8 56 38 10 Thermal . | . . . . Explosive . | . . . . Electromagnetic . | . . . . Robot Hit Streak 6 | 3 5 4 6 Robot Miss Streak 5 | 1 2 5 1 Penetration Max . | . . . . Secondary Targets 2 | . . 2 . Max Gunslinging Chain 1 | . . 1 . Shots Hit Robots 66 | 5 34 19 8 Core Hits 29 | 3 18 7 1 Critical Kills . | . . . . Critical Parts Destroyed . | . . . . Critical Strikes . | . . . . Melee Attacks . | . . . . Impact . | . . . . Slashing . | . . . . Piercing . | . . . . Sneak Attacks . | . . . . Combat Hostiles . | . . . . Follow-up Attacks . | . . . . Damage Inflicted 563 | 57 258 180 68 Guns 563 | 57 258 180 68 Cannons . | . . . . Explosions . | . . . . Melee . | . . . . Ramming . | . . . . Kinetic 563 | 57 258 180 68 Thermal . | . . . . Explosive . | . . . . Electromagnetic . | . . . . Impact . | . . . . Slashing . | . . . . Piercing . | . . . . Highest Corruption . | . . . . Average Corruption . | . . . . Corruption Purged . | . . . . Corruption Blocked . | . . . . Overload Shots . | . . . . Overflow Damage . | . . . . Projectiles . | . . . . Explosions . | . . . . Melee . | . . . . Knockbacks . | . . . . Impact . | . . . . Kinetic . | . . . . Secondary . | . . . . Self-Inflicted Damage . | . . . . Shots . | . . . . Rammed . | . . . . Targets Rammed . | . . . . Kicked . | . . . . Crushed . | . . . . Highest Temperature . | . . . . Average Temperature . | . . . . Received Heat Transfer 33 | . . . 33 Siege Activations . | . . . . Martial Activations . | . . . . Shielding Activations . | . . . . Robots Disrupted . | . . . . Combat Hostiles . | . . . . Robots Corrupted . | . . . . Combat Hostiles . | . . . . Parts Fried . | . . . . Impact Corruptions . | . . . . Robots Melted . | . . . . Combat Hostiles . | . . . . Parts Melted . | . . . . Heat Transferred . | . . . . Parts Sabotaged . | . . . . Parts Stolen . | . . . . Parts Stripped . | . . . . Power Chain Reactions . | . . . . Alert | -11 -10 -10 -10 ------- Run | Yrd Mat Min Sub Maximum Alert Level . | . . . . Low Security (%) 100 | 100 100 100 . Level 1 . | . . . . Level 2 . | . . . . Level 3 . | . . . . Level 4 . | . . . . Level 5 . | . . . . High Security . | . . . . Max Security . | . . . . Peak Influence 96 | 10 70 96 . Initial . | . . . . Average 19 | . 19 26 . Influence Increases 333 | 10 157 166 . Destroy 0b10 Robot/C 240 | . 120 120 . Destroy 0b10 Robot/NC 25 | 10 15 . . Destroy Leader 42 | . 22 20 . Allied During Kill 11 | . . 11 . Disable Machine 15 | . . 15 . Influence Decreases 333 | 10 157 118 48 Entered New Map 26 | . . . 26 Time Decay 295 | 10 157 118 10 Lost Ally 12 | . . . 12 Squads Dispatched 1 | . 1 . . Investigation 1 | . 1 . . Extermination . | . . . . Reinforcement . | . . . . Assault . | . . . . Garrison . | . . . . Intercept . | . . . . Searches Triggered . | . . . . Construction Impeded . | . . . . Haulers Reinforced . | . . . . Active Scanning Responses . | . . . . Cargo Convoy Interrupts . | . . . . Stealth | -11 -10 -10 -10 --------- Run | Yrd Mat Min Sub Distress Signals . | . . . . Communications Jammed . | . . . . Distress Signals . | . . . . Times Spotted 20 | . 10 6 4 Peak Tracking Total 4 | . 4 3 2 Tactical Retreats . | . . . . Traps | -11 -10 -10 -10 ------- Run | Yrd Mat Min Sub Traps Triggered 1 | . 1 . . Indirectly . | . . . . Trap Hack Attempts . | . . . . Triggered . | . . . . Disarmed . | . . . . Reprogrammed . | . . . . Reused . | . . . . Traps Extracted . | . . . . Installed . | . . . . Triggered . | . . . . Machines | -11 -10 -10 -10 ---------- Run | Yrd Mat Min Sub Machines Disabled 1 | . . 1 . Max in Single Turn . | . . . . Machines Repaired . | . . . . Machines Dismantled . | . . . . Machines Sabotaged . | . . . . Overloaded Fab Kills . | . . . . Hacking | -11 -10 -10 -10 --------- Run | Yrd Mat Min Sub Machines Accessed 2 | . . . 2 Terminals . | . . . . Fabricators . | . . . . Repair Stations . | . . . . Recycling Units . | . . . . Scanalyzers . | . . . . Garrison Access . | . . . . Total Hacks 3 | . . . 3 Successful 3 | . . . 3 Failed . | . . . . Catastrophic . | . . . . Database Lockouts . | . . . . Manual . | . . . . Terminals . | . . . . Fabricators . | . . . . Repair Stations . | . . . . Recycling Units . | . . . . Scanalyzers . | . . . . Garrison Access . | . . . . Terminal Hacks 3 | . . . 3 Record 1 | . . . 1 Open Door 1 | . . . 1 Release Object 1 | . . . 1 Fabricator Hacks . | . . . . Repair Station Hacks . | . . . . Recycling Unit Hacks . | . . . . Scanalyzer . | . . . . Garrison Access Hacks . | . . . . Unauthorized Hacks . | . . . . Terminals . | . . . . Fabricators . | . . . . Repair Stations . | . . . . Recycling Units . | . . . . Scanalyzers . | . . . . Garrison Access . | . . . . Data Cores Recovered . | . . . . Used . | . . . . Hacking Detections . | . . . . Full Trace Events . | . . . . Feedback Events . | . . . . Feedback Blocked . | . . . . Robot Schematics Acquired . | . . . . Robots Built . | . . . . Authchips . | . . . . Time . | . . . . Total Robot Build Rating . | . . . . Part Schematics Acquired . | . . . . Parts Built . | . . . . Authchips . | . . . . Time . | . . . . Total Part Build Rating . | . . . . Part Studies Acquired . | . . . . Parts Repaired . | . . . . Time . | . . . . Parts Recycled . | . . . . Recycled Matter . | . . . . Retrieved Matter . | . . . . Retrieved Components . | . . . . Parts Scanalyzed . | . . . . Part Schematics Acquired . | . . . . Parts Damaged . | . . . . Bothacking | -11 -10 -10 -10 ------------ Run | Yrd Mat Min Sub Used RIF Installer . | . . . . Robots Hacked . | . . . . Non-combat . | . . . . Combat . | . . . . Robot Hacks Applied . | . . . . Relay Couplers Released . | . . . . Fabnet Peak Effective % . | . . . . Robots Rewired . | . . . . Allies Hacked . | . . . . Hacks Repelled . | . . . . Allies | -11 -10 -10 -10 -------- Run | Yrd Mat Min Sub Total Allies 3 | . . 3 . Largest Group 3 | . . 3 3 Highest-Rated Group 40 | . . 40 40 Highest-Rated Ally 16 | . . 16 16 Total Orders . | . . . . Ally Attacks 18 | . . 9 9 Total Damage 227 | . . 83 144 Kills 4 | . . 2 2 Allies Corrupted . | . . . . Allies Melted . | . . . . Intel | -11 -10 -10 -10 ------- Run | Yrd Mat Min Sub Active Infowar (turns) 1352 | 41 539 403 369 Seismic 1352 | 41 539 403 369 Robot Analysis Total . | . . . . Derelict Logs Recovered 2 | . . 2 . Drone Launches . | . . . . Drone Recoveries . | . . . . Exploration | -11 -10 -10 -10 ------------- Run | Yrd Mat Min Sub Turns Passed 1436 | 125 539 403 369 Spaces Moved 779 | 66 283 219 211 Core 5 | 5 . . . Treads 774 | 61 283 219 211 Legs . | . . . . Wheels . | . . . . Hover . | . . . . Flight . | . . . . Fastest Speed 50 | 50 160 160 160 Average Speed 159 | 151 160 160 160 Slowest Speed 160 | 160 160 160 160 Overloaded Moves . | . . . . Propulsion Burnouts . | . . . . Robots Hopped . | . . . . Potential Cave-ins . | . . . . Cave-ins Triggered . | . . . . Exploration Rate (%) 28 | 6 37 49 20 Regions Visited 3 Branch Regions 2 Pre-discovered Areas 1 | . . 1 . Known Exits Taken . | . . . . Unknown Exits Taken 3 | 1 1 1 . Scrap Searched 1 | . . 1 . Spaces Dug . | . . . . Terrain Destroyed . | . . . . Melee . | . . . . Projectile . | . . . . AOE . | . . . . Terrain Rammed . | . . . . Walls Destroyed . | . . . . Machines Disabled . | . . . . Actions | -11 -10 -10 -10 --------- Run | Yrd Mat Min Sub Total 881 | 82 324 241 234 Wait 23 | . 4 4 15 Move 776 | 65 282 218 211 Hop . | . . . . Pick Up 14 | 7 5 . 2 Fast Attach 6 | 6 . . . Attach 1 | . 1 . . Detach . | . . . . Swap 3 | . 3 . . Drop 1 | . 1 . . Fire 56 | 4 28 19 5 Melee . | . . . . Ram . | . . . . Kick . | . . . . Crush . | . . . . Escape Stasis . | . . . . Rewire . | . . . . Trap . | . . . . Miscellaneous 1 | . . . 1 Route ------- -11/Scrapyard -10/Materials -10/Mines (discovered 3 exits: [*Mat x2] / *Sub) -10/Subcaves (discovered 1 exit: [*Mat]) History --------- Turn | Location | Event 12 | -11/Scrapyard | Discovered new exit (range 15) 126 | -11/Scrapyard | Entered Materials 307 | -10/Materials | Build established: Mutant 472 | -10/Materials | Discovered new exit (range 16) 665 | -10/Materials | Entered Mines 738 | -10/Mines | Met a Derelict bent on vengeance 769 | -10/Mines | Assisted by bots powering up and referring to "LRC-V3" 938 | -10/Mines | Learned location of Storage (-7) 940 | -10/Mines | Learned Materials stockpile data 967 | -10/Mines | Discovered new exit (range 7) 1010 | -10/Mines | Discovered new exit (range 7) 1063 | -10/Mines | Discovered new exit (range 3) 1068 | -10/Mines | Entered Subcaves 1068 | -10/Subcaves | Accompanied by 3 allies 1069 | -10/Subcaves | Approached by a straggling Scientist 1089 | -10/Subcaves | Discovered new exit (range 9) 1093 | -10/Subcaves | Core integrity fell below 50% 1227 | -10/Subcaves | Released subatomizers from SUBCON Basin 1436 | -10/Subcaves | Core integrity fell below 20% 1437 | -10/Subcaves | Destroyed by 5X-BWK(R) with Subdweller Shrapnel Launcher Last Messages --------------- introduction into previously unexposed areas could cause more extreme side effects. Take all precautions to prevent this from happening. >>Release Inventory Accessing inventory controls... Collection purity confirmed 100%... Ejecting SUBCON Basin... Delivery behind schedule, handle with care! 01227_ Released subatomizers from SUBCON Basin. Q8-J2C(c): "I think it's somewhere east of here" Q8-J2C(c): "I think it's somewhere northeast of here" Q8-J2C(c): "I think it's somewhere east of here" 01431_ Lgt. Treads destroyed. 01431_ Trooper 1b destroyed. 01435_ Lgt. Treads destroyed. 01435_ Q8-J2C(c) destroyed. [Achievement: Deductive Reasoning] Map ----- +----------------------------------------------------+ | ?????????????????????????????????????????????????? | | ?????????????????????????????????????????????????? | | ?????????????????????????????????????????????????? | | ?????????????????????????????????????????????????? | | ?????????????????????????????????????????????????? | | ?????????????????????????????????????????????????? | | ?????????????????????????????????????????????????? | | ?????????????????????????????????????????????????? | | ?????????????????????????????????????????????????? | | ?????????????????????????????????????????????????? | | ?????????????????????????????????????????????????? | | ?????????????????????????????????????????????????? | | ?????????????????????????????????????????????????? | | ?????????????????????????????????????????????????? | | ?????????????????????##???###???? ???????????????? | | ???????????????????? ??? # ???"????????????????? | | ????????????????????# ??? #?? #????????????????? | | ?????????????????#### ??? ?## ?????????????????? | | ?????????????????# ??? ? "?????????????????? | | ????????????????## ??? "??????????????????? | | ??????????###??## ###"# "#??????????????????? | | ########?# ##?# #??????????????????? | | # ## #?# ##?????????????????? | | #?# ###???????????????? | | ### =% ; #???????????????? | | ##;; * @ R ;;#???????????????? | | < ## ; R " ?????????? | | #?# ;; %* #??????????? | | ### ##?# ;; = ;; #??????????? | | ##?# ####??#####; ;### ###??????????? | | #?##&%#?????????## % ##???##????????????? | | ##?#&&##?????????# ## #?????????????????? | | ###??#==##?????????## ##### %#?????????????????? | | #????#%* ########??# ##?## ##?????????????????? | | ?????#=%## ## ##### ##?###??????????????????? | | ?????##&= ### ##?????????????????????? | | ??????## ## ### # #?????????????????????? | | ???????#######?# # ###?????????????????????? | | ???????????????## # ##???????????????????????? | | ???????????????# ### ###??????????????????????? | | ???????????????# ## #??????????????????????? | | ##????###??????## ## #??????????????????????? | | #??## ?????## ## #???#??????????????????? | | ?## ?????# ## ### ###????????????????? | | ## #?????## ####?????????????? | | #??????### #????????????? | | ###??????### # ### ?????????? | | ?????????## ####????? ??????????? | | #????###### #??????????????????????? | | ##???# ## ##??????????????????????? | +----------------------------------------------------+ Best States ------------- Heat Dissipation 25 Energy Generation 10 Energy Capacity 250 Matter Stores 300 Matter Capacity 300 Sight Range 16 Terrain Scan Density 10 Evasion (%) 40 Recoil Reduction 2 Item Schematics ----------------- None Robot Schematics ------------------ None Fabricated ------------ Nothing Repaired ---------- Nothing Studied --------- None Alien Tech Used ----------------- None Achievements -------------- Deductive Reasoning Challenges ------------ None Game ------ Seed NullDeepWheel Manual? 0 Play Time 00:08:51 Cumulative 504.7 hours Start 2025.11.08 @ 21:15:16 End 2025.12.07 @ 16:11:45 Sessions 3 Manual Loads 0 Difficulty Rogue Special Mode None Game No. 560 Rogue 560 Adventurer 0 Explorer 0 Win Type - Total 46 Types 24/3/14/1/1/0/3/0/0/0 Lore% 79 Gallery% 74 Achievement% 38 Wizard Run 0 Options --------- Layout 1 ASCII 1 Keyboard 1 Movement Numpad Keybinds 0 Fullscreen 1 Font 24/Tamsyn Map View 50x35 Zoom Use 0% Tactical HUD 1 Map Filters NONE Filters NONE Steam 1 RUN: 5e58e024-0f06-4fb6-9ad4-b5c04e1825b7